fUSD/lending_fUSD_20241116
["ID","MTS","AMOUNT","RATE_DAILY","PERIOD"]
[342346743,1731762634695,-500.0,9.798e-05,2]
[342346744,1731762634705,-500.0,9.798e-05,2]
[342346745,1731762634714,-500.0,9.798e-05,2]
[342346746,1731762634724,-500.0,9.798e-05,2]
[342346747,1731762634734,-500.0,9.798e-05,2]
[342346748,1731762634743,-500.0,9.798e-05,2]
[342346749,1731762634753,-500.0,9.798e-05,2]
[342346750,1731762634762,-500.0,9.798e-05,2]
[342346751,1731762634771,-500.0,9.798e-05,2]
[342346752,1731762634782,-500.0,9.798e-05,2]
[342346753,1731762634792,-500.0,9.798e-05,2]
[342346754,1731762634801,-500.0,9.798e-05,2]
[342346755,1731762634811,-591.65,9.798e-05,2]
[342346756,1731762634820,-500.0,9.798e-05,2]
[342346757,1731762634830,-500.0,9.798e-05,2]
[342346758,1731762634839,-500.0,9.798e-05,2]
[342346759,1731762634849,-500.0,9.798e-05,2]
[342346760,1731762634858,-500.0,9.798e-05,2]
[342346761,1731762634868,-500.0,9.798e-05,2]
[342346762,1731762634877,-500.0,9.798e-05,2]
[342346763,1731762634887,-591.68,9.798e-05,2]
[342346764,1731762634896,-532.01340946,9.798e-05,2]
[342346765,1731762634906,-502.49424156,9.798e-05,2]
[342346766,1731762634916,-542.19,9.798e-05,2]
[342346767,1731762634926,-500.0,9.798e-05,2]
[342346768,1731762634935,-185.89696155,9.798e-05,2]
[342346769,1731762634945,-511.1517205,9.798e-05,2]
[342346770,1731762634955,-500.0,9.798e-05,2]
[342346771,1731762634964,-500.0,9.798e-05,2]
[342346772,1731762634973,-522.55687369,9.798e-05,2]
[342346773,1731762634983,-500.0,9.798e-05,2]
[342346774,1731762634992,-231.69213235,9.798e-05,2]
[342346775,1731762635001,-565.59829779,9.798e-05,2]
[342346776,1731762635011,-500.0,9.798e-05,2]
[342346777,1731762635020,-500.0,9.798e-05,2]
[342346778,1731762635031,-502.74137198,9.798e-05,2]
[342346779,1731762635040,-500.0,9.798e-05,2]
[342346780,1731762635050,-4014.99,9.798e-05,2]
[342346781,1731762635059,-500.0,9.798e-05,2]
[342346782,1731762635069,-500.0,9.798e-05,2]
[342346783,1731762635079,-500.0,9.798e-05,2]
[342346784,1731762635088,-500.0,9.798e-05,2]
[342346785,1731762635098,-500.0,9.798e-05,2]
[342346786,1731762635107,-649.46,9.798e-05,2]
[342346787,1731762635117,-4161.69,9.798e-05,2]
[342346788,1731762635126,-629.65,9.798e-05,2]
[342346789,1731762635137,-505.62193626,9.798e-05,2]
[342346790,1731762635146,-3404.64,9.798e-05,2]
[342346791,1731762635155,-500.0,9.798e-05,2]
[342346792,1731762635166,-500.0,9.798e-05,2]
[342346793,1731762635175,-500.0,9.798e-05,2]
[342346794,1731762635186,-500.0,9.798e-05,2]
[342346795,1731762635194,-500.0,9.798e-05,2]
[342346796,1731762635204,-503.70749428,9.798e-05,2]
[342346797,1731762635213,-514.35919849,9.798e-05,2]
[342346798,1731762635223,-568.49,9.798e-05,2]
[342346799,1731762635232,-500.0,9.798e-05,2]
[342346800,1731762635243,-500.0,9.798e-05,2]
[342346801,1731762635255,-500.0,9.798e-05,2]
[342346802,1731762635264,-500.0,9.798e-05,2]
[342346803,1731762635276,-500.0,9.798e-05,2]
[342346804,1731762635286,-500.0,9.798e-05,2]
[342346805,1731762635295,-520.48562405,9.798e-05,2]
[342346806,1731762635304,-719.65,9.798e-05,2]
[342346807,1731762635314,-510.92,9.798e-05,2]
[342346808,1731762635323,-500.0,9.798e-05,2]
[342346809,1731762635332,-4718.8897,9.799e-05,2]
[342346810,1731762635342,-9012.4262,9.799e-05,2]
[342346811,1731762635351,-156671.2808,9.799e-05,2]
[342346812,1731762635361,-158.68654701,9.799e-05,2]
[342346813,1731762635370,-500.0,9.799e-05,2]
[342346814,1731762635379,-500.0,9.799e-05,2]
[342346815,1731762635390,-510.25122827,9.799e-05,2]
[342346816,1731762635399,-157.976314,9.799e-05,2]
[342346817,1731762635408,-500.00923731,9.799e-05,2]
[342346818,1731762635417,-500.0,9.799e-05,2]
[342346819,1731762635427,-500.0,9.799e-05,2]
[342346820,1731762635436,-564.80451813,9.799e-05,2]
[342346821,1731762635446,-500.0,9.799e-05,2]
[342346822,1731762635455,-330.80905928,9.799e-05,2]
[342346823,1731762635464,-501.40376583,9.799e-05,2]
[342346824,1731762635473,-550.0,9.799e-05,2]
[342346825,1731762635483,-500.0,9.799e-05,2]
[342346826,1731762635492,-500.80067579,9.799e-05,2]
[342346827,1731762635501,-500.0,9.799e-05,2]
[342346828,1731762635510,-586.31,9.799e-05,2]
[342346829,1731762635520,-500.98031288,9.799e-05,2]
[342346830,1731762635530,-500.0,9.799e-05,2]
[342346831,1731762635540,-500.0,9.799e-05,2]
[342346832,1731762635550,-500.0,9.799e-05,2]
[342346833,1731762635560,-500.0,9.799e-05,2]
[342346834,1731762635569,-500.0,9.799e-05,2]
[342346835,1731762635578,-501.45766013,9.799e-05,2]
[342346836,1731762635587,-500.0,9.799e-05,2]
[342346837,1731762635596,-500.0,9.799e-05,2]
[342346838,1731762635605,-558.75452152,9.799e-05,2]
[342346839,1731762635614,-500.19388164,9.799e-05,2]
[342346840,1731762635623,-500.0,9.799e-05,2]
[342346841,1731762635632,-500.0,9.799e-05,2]
[342346842,1731762635641,-500.0,9.799e-05,2]
[342346843,1731762635651,-500.0,9.799e-05,2]
[342346844,1731762635660,-500.0,9.799e-05,2]
[342346845,1731762635669,-501.08250432,9.799e-05,2]
[342346846,1731762635681,-500.21256438,9.799e-05,2]
[342346847,1731762635692,-501.12174545,9.799e-05,2]
[342346848,1731762635701,-528.27338751,9.799e-05,2]
[342346849,1731762635710,-602.76307153,9.799e-05,2]
[342346850,1731762635720,-500.0,9.799e-05,2]
[342346851,1731762635730,-500.0,9.799e-05,2]
[342346852,1731762635740,-500.0,9.799e-05,2]
[342346853,1731762635749,-500.0,9.799e-05,2]
[342346854,1731762635759,-3622.31,9.799e-05,2]
[342346855,1731762635768,-500.0,9.799e-05,2]
[342346856,1731762635779,-500.0,9.799e-05,2]
[342346857,1731762635788,-501.14655305,9.799e-05,2]
[342346858,1731762635797,-500.0,9.799e-05,2]
[342346859,1731762635807,-500.83259651,9.799e-05,2]
[342346860,1731762635816,-500.0,9.799e-05,2]
[342346861,1731762635824,-501.5487152,9.799e-05,2]
[342346862,1731762635834,-500.0,9.799e-05,2]
[342346863,1731762635843,-501.08994146,9.799e-05,2]
[342346864,1731762635852,-500.10549151,9.799e-05,2]
[342346865,1731762635861,-490.07877853,9.799e-05,2]
[342346866,1731762635870,-539.53376276,9.799e-05,2]
[342346867,1731762635879,-500.0,9.799e-05,2]
[342346868,1731762635888,-502.92250498,9.799e-05,2]
[342346869,1731762635897,-500.0,9.799e-05,2]
[342346870,1731762635907,-500.22116434,9.799e-05,2]
[342346871,1731762635916,-500.0,9.799e-05,2]
[342346872,1731762635925,-505.58229423,9.799e-05,2]
[342346873,1731762635936,-500.40688413,9.799e-05,2]
[342346874,1731762635945,-500.16745713,9.799e-05,2]
[342346875,1731762635954,-522.29795819,9.799e-05,2]
[342346876,1731762635964,-500.0,9.799e-05,2]
[342346877,1731762635973,-500.0,9.799e-05,2]
[342346878,1731762635982,-500.0,9.799e-05,2]
[342346879,1731762635991,-500.0,9.799e-05,2]
[342346880,1731762636001,-500.0,9.799e-05,2]
[342346881,1731762636010,-500.0,9.799e-05,2]
[342346882,1731762636020,-502.71684804,9.799e-05,2]
[342346883,1731762636036,-500.0,9.799e-05,2]
[342346884,1731762636045,-366.96621134,9.799e-05,2]
[342346885,1731762636055,-503.16430962,9.799e-05,2]
[342346886,1731762636064,-500.0,9.799e-05,2]
[342346887,1731762636074,-500.0,9.799e-05,2]
[342346888,1731762636083,-500.0,9.799e-05,2]
[342346889,1731762636093,-565.69,9.799e-05,2]
[342346890,1731762636102,-500.0,9.799e-05,2]
[342346891,1731762636111,-500.0,9.799e-05,2]
[342346892,1731762636120,-500.0,9.799e-05,2]
[342346893,1731762636129,-520.08918516,9.799e-05,2]
[342346894,1731762636140,-500.0,9.799e-05,2]
[342346895,1731762636149,-5149.53,9.799e-05,2]
[342346896,1731762636158,-500.0,9.799e-05,2]
[342346897,1731762636168,-563.73811551,9.799e-05,2]
[342346898,1731762636177,-500.0,9.799e-05,2]
[342346899,1731762636187,-500.0,9.799e-05,2]
[342346900,1731762636197,-500.0,9.799e-05,2]
[342346901,1731762636206,-500.0,9.799e-05,2]
[342346902,1731762636216,-500.0,9.799e-05,2]
[342346903,1731762636226,-500.0,9.799e-05,2]
[342346904,1731762636236,-500.0,9.799e-05,2]
[342346905,1731762636246,-500.0,9.799e-05,2]
[342346906,1731762636255,-257.33,9.799e-05,2]
[342346907,1731762636265,-500.0,9.799e-05,2]
[342346908,1731762636279,-443.07958551,9.799e-05,2]
[342346909,1731762636289,-500.0,9.799e-05,2]
[342346910,1731762636299,-502.02294245,9.799e-05,2]
[342346911,1731762636308,-501.82702531,9.799e-05,2]
[342346912,1731762636317,-500.0,9.799e-05,2]
[342346913,1731762636327,-500.0,9.799e-05,2]
[342346914,1731762636336,-500.0,9.799e-05,2]
[342346915,1731762636345,-331.18,9.799e-05,2]
[342346916,1731762636354,-505.2419261,9.799e-05,2]
[342346917,1731762636363,-500.0,9.799e-05,2]
[342346918,1731762636372,-547.07879025,9.799e-05,2]
[342346919,1731762636381,-500.0,9.799e-05,2]
[342346920,1731762636391,-482.1,9.799e-05,2]
[342346921,1731762636400,-500.0,9.799e-05,2]
[342346922,1731762636409,-525.5420291,9.799e-05,2]
[342346923,1731762636418,-500.0,9.799e-05,2]
[342346924,1731762636427,-500.0,9.799e-05,2]
[342346925,1731762636436,-500.0,9.799e-05,2]
[342346926,1731762636445,-500.0,9.799e-05,2]
[342346927,1731762636455,-500.0,9.799e-05,2]
[342346928,1731762636463,-500.0,9.799e-05,2]
[342346929,1731762636473,-502.22456434,9.799e-05,2]
[342346930,1731762636482,-500.0,9.799e-05,2]
[342346931,1731762636491,-500.0,9.799e-05,2]
[342346932,1731762636500,-500.0,9.799e-05,2]
[342346933,1731762636510,-500.0,9.799e-05,2]
[342346934,1731762636524,-500.0,9.799e-05,2]
[342346935,1731762636540,-500.0,9.799e-05,2]
[342346936,1731762636549,-500.0,9.799e-05,2]
[342346937,1731762636559,-500.0,9.799e-05,2]
[342346938,1731762636568,-411.72,9.799e-05,2]
[342346939,1731762636577,-500.0,9.799e-05,2]
[342346940,1731762636587,-500.0,9.799e-05,2]
[342346941,1731762636596,-500.0,9.799e-05,2]
[342346942,1731762636605,-500.0,9.799e-05,2]
[342346943,1731762636614,-500.0,9.799e-05,2]
[342346944,1731762636623,-500.0,9.799e-05,2]
[342346945,1731762636632,-500.0,9.799e-05,2]
[342346946,1731762636641,-500.0,9.799e-05,2]
[342346947,1731762636652,-500.0,9.799e-05,2]
[342346948,1731762636662,-500.0,9.799e-05,2]
[342346949,1731762636672,-500.0,9.799e-05,2]
[342346950,1731762636682,-500.0,9.799e-05,2]
[342346951,1731762636696,-297.45,9.799e-05,2]
[342346952,1731762636705,-500.0,9.799e-05,2]
[342346953,1731762636714,-500.0,9.799e-05,2]
[342346954,1731762636723,-500.0,9.799e-05,2]
[342346955,1731762636734,-500.0,9.799e-05,2]
[342346956,1731762636744,-505.00771061,9.799e-05,2]
[342346957,1731762636754,-500.0,9.799e-05,2]
[342346958,1731762636763,-500.0,9.799e-05,2]
[342346959,1731762636773,-500.0,9.799e-05,2]
[342346960,1731762636785,-500.0,9.799e-05,2]
[342346961,1731762636795,-500.0,9.799e-05,2]
[342346962,1731762636804,-500.0,9.799e-05,2]
[342346963,1731762636813,-5287.71,9.799e-05,2]
[342346964,1731762636822,-500.0,9.799e-05,2]
[342346965,1731762636832,-500.0,9.799e-05,2]
[342346966,1731762636842,-549.9967578,9.799e-05,2]
[342346967,1731762636853,-2000.0,9.799e-05,2]
[342346968,1731762636862,-500.0,9.799e-05,2]
[342346969,1731762636873,-500.0,9.799e-05,2]
[342346970,1731762636882,-502.4310517,9.799e-05,2]
[342346971,1731762636891,-526.06207829,9.799e-05,2]
[342346972,1731762636901,-500.0,9.799e-05,2]
[342346973,1731762636911,-511.45881936,9.799e-05,2]
[342346974,1731762636919,-5000.0,9.799e-05,2]
[342346975,1731762637105,-538.54419829,9.799e-05,2]
[342346976,1731762637115,-500.0,9.799e-05,2]
[342346977,1731762637124,-500.0,9.799e-05,2]
[342346978,1731762637133,-500.0,9.799e-05,2]
[342346979,1731762637142,-500.0,9.799e-05,2]
[342346980,1731762637152,-500.0,9.799e-05,2]
[342346981,1731762637161,-500.0,9.799e-05,2]
[342346982,1731762637172,-500.0,9.799e-05,2]
[342346983,1731762637183,-565.12,9.799e-05,2]
[342346984,1731762637192,-500.0,9.799e-05,2]
[342346985,1731762637201,-500.0,9.799e-05,2]
[342346986,1731762637210,-3354.65,9.799e-05,2]
[342346987,1731762637219,-500.0,9.799e-05,2]
[342346988,1731762637229,-500.0,9.799e-05,2]
[342346989,1731762637239,-503.25515646,9.799e-05,2]
[342346990,1731762637250,-462.05869395,9.799e-05,2]
[342346991,1731762637259,-500.0,9.799e-05,2]
[342346992,1731762637271,-500.0,9.799e-05,2]
[342346993,1731762637282,-500.0,9.799e-05,2]
[342346994,1731762637291,-500.0,9.799e-05,2]
[342346995,1731762637301,-500.0,9.799e-05,2]
[342346996,1731762637310,-500.0,9.799e-05,2]
[342346997,1731762637319,-386.34163812,9.8e-05,2]
[342346998,1731762637329,-258.79622753,9.8e-05,2]
[342346999,1731762637338,-150.0,9.834e-05,2]
[342347000,1731762637347,-150.0,9.836e-05,2]
[342347001,1731762637356,-150.0,9.875e-05,2]
[342347002,1731762637365,-500.63,9.877e-05,2]
[342347003,1731762637374,-500.0,9.877e-05,2]
[342347004,1731762637383,-629.50297579,9.877e-05,2]
[342347005,1731762637392,-634.26962828,9.877e-05,2]
[342347006,1731762637402,-500.0,9.877e-05,2]
[342347007,1731762637411,-591.65,9.877e-05,2]
[342347008,1731762637420,-500.0,9.877e-05,2]
[342347009,1731762637430,-719.65,9.877e-05,2]
[342347010,1731762637439,-627.13640779,9.878e-05,2]
[342347011,1731762637448,-189.66591674,9.878e-05,2]
[342347012,1731762637458,-500.0,9.878e-05,2]
[342347013,1731762637466,-281.54945215,9.878e-05,2]
[342347014,1731762637477,-573.91515124,9.878e-05,2]
[342347015,1731762637486,-252.89125716,9.878e-05,2]
[342347016,1731762637496,-500.0,9.878e-05,2]
[342347017,1731762637505,-463.23536947,9.878e-05,2]
[342347018,1731762637515,-179.49044816,9.878e-05,2]
[342347019,1731762637525,-500.0,9.878e-05,2]
[342347020,1731762637536,-473.07846952,9.878e-05,2]
[342347021,1731762637546,-500.0,9.878e-05,2]
[342347022,1731762637555,-500.0,9.878e-05,2]
[342347023,1731762637565,-500.0,9.878e-05,2]
[342347024,1731762637575,-3622.31,9.878e-05,2]
[342347025,1731762637584,-613.31274858,9.878e-05,2]
[342347026,1731762637594,-500.0,9.878e-05,2]
[342347027,1731762637604,-500.0,9.878e-05,2]
[342347028,1731762637614,-500.0,9.878e-05,2]
[342347029,1731762637623,-500.0,9.878e-05,2]
[342347031,1731762637632,-175.33606748,9.878e-05,2]
[342347033,1731762637641,-500.0,9.878e-05,7]
[342347035,1731762637652,-500.0,9.878e-05,2]
[342347036,1731762637661,-500.0,9.878e-05,2]
[342347037,1731762637670,-500.0,9.878e-05,2]
[342347038,1731762637680,-500.0,9.878e-05,2]
[342347039,1731762637691,-500.0,9.878e-05,2]
[342347040,1731762637701,-500.0,9.878e-05,2]
[342347041,1731762637710,-500.0,9.878e-05,2]
[342347042,1731762637719,-500.0,9.878e-05,2]
[342347043,1731762637728,-500.0,9.878e-05,2]
[342347044,1731762637739,-500.0,9.878e-05,2]
[342347045,1731762637748,-500.0,9.878e-05,2]
[342347046,1731762637758,-500.0,9.878e-05,2]
[342347047,1731762637768,-500.0,9.878e-05,2]
[342347048,1731762637780,-5149.53,9.878e-05,2]
[342347049,1731762637789,-500.0,9.878e-05,2]
[342347050,1731762637799,-500.0,9.878e-05,2]
[342347051,1731762637808,-500.0,9.878e-05,2]
[342347052,1731762637818,-500.0,9.878e-05,2]
[342347053,1731762637828,-500.0,9.878e-05,2]
[342347054,1731762637837,-434.57414715,9.878e-05,2]
[342347055,1731762637847,-500.0,9.878e-05,2]
[342347056,1731762637856,-500.0,9.878e-05,2]
[342347057,1731762637866,-304.77,9.878e-05,2]
[342347058,1731762637875,-500.0,9.878e-05,2]
[342347059,1731762637884,-500.0,9.878e-05,2]
[342347060,1731762637893,-500.0,9.878e-05,2]
[342347061,1731762637902,-500.0,9.878e-05,2]
[342347062,1731762637911,-500.0,9.878e-05,2]
[342347063,1731762637920,-500.0,9.878e-05,2]
[342347064,1731762637930,-500.0,9.878e-05,2]
[342347065,1731762637939,-500.0,9.878e-05,2]
[342347066,1731762637948,-500.0,9.878e-05,2]
[342347067,1731762637958,-500.0,9.878e-05,2]
[342347068,1731762637967,-581.42,9.878e-05,2]
[342347069,1731762637976,-500.0,9.878e-05,2]
[342347070,1731762637986,-620.54834014,9.878e-05,2]
[342347071,1731762637995,-500.0,9.878e-05,2]
[342347072,1731762638004,-500.0,9.878e-05,2]
[342347073,1731762638013,-500.0,9.878e-05,2]
[342347074,1731762638023,-388.66,9.878e-05,2]
[342347075,1731762638033,-500.0,9.878e-05,2]
[342347076,1731762638042,-500.0,9.878e-05,2]
[342347077,1731762638051,-500.0,9.878e-05,2]
[342347078,1731762638061,-500.0,9.878e-05,2]
[342347079,1731762638070,-500.0,9.878e-05,2]
[342347080,1731762638079,-500.0,9.878e-05,2]
[342347081,1731762638090,-500.0,9.878e-05,2]
[342347082,1731762638100,-500.0,9.878e-05,2]
[342347083,1731762638111,-500.0,9.878e-05,2]
[342347084,1731762638120,-500.0,9.878e-05,2]
[342347085,1731762638130,-500.0,9.878e-05,2]
[342347086,1731762638139,-500.0,9.878e-05,2]
[342347087,1731762638149,-500.0,9.878e-05,2]
[342347088,1731762638158,-500.0,9.878e-05,2]
[342347089,1731762638167,-500.0,9.878e-05,2]
[342347090,1731762638176,-346.82052131,9.878e-05,2]
[342347091,1731762638185,-500.0,9.878e-05,2]
[342347092,1731762638195,-232.33300419,9.878e-05,2]
[342347093,1731762638204,-500.0,9.878e-05,2]
[342347094,1731762638214,-500.0,9.878e-05,2]
[342347095,1731762638224,-500.0,9.878e-05,2]
[342347096,1731762638233,-5287.71,9.878e-05,2]
[342347097,1731762638242,-412.20801127,9.878e-05,2]
[342347098,1731762638252,-500.0,9.878e-05,2]
[342347099,1731762638263,-905.10789961,9.878e-05,2]
[342347100,1731762638272,-248.37079244,9.878e-05,2]
[342347101,1731762638284,-500.0,9.878e-05,2]
[342347102,1731762638293,-177.86638403,9.878e-05,2]
[342347103,1731762638302,-5000.0,9.878e-05,2]
[342347104,1731762638313,-500.0,9.878e-05,2]
[342347105,1731762638323,-500.0,9.878e-05,2]
[342347106,1731762638332,-500.0,9.878e-05,2]
[342347107,1731762638342,-500.0,9.878e-05,2]
[342347108,1731762638351,-500.0,9.878e-05,2]
[342347109,1731762638360,-500.0,9.878e-05,2]
[342347110,1731762638370,-565.12,9.878e-05,2]
[342347111,1731762638379,-500.0,9.878e-05,2]
[342347112,1731762638390,-500.0,9.878e-05,2]
[342347113,1731762638400,-3354.65,9.878e-05,2]
[342347114,1731762638411,-500.0,9.878e-05,2]
[342347115,1731762638420,-500.0,9.878e-05,2]
[342347117,1731762638429,-500.0,9.878e-05,2]
[342347119,1731762638439,-500.0,9.878e-05,2]
[342347121,1731762638448,-500.0,9.878e-05,2]
[342347123,1731762638458,-500.0,9.878e-05,2]
[342347125,1731762638467,-500.0,9.878e-05,2]
[342347127,1731762638477,-150.0,9.895e-05,2]
[342347129,1731762638486,-501.09091819,9.899e-05,2]
[342347131,1731762638495,-500.0,9.899e-05,2]
[342347133,1731762638504,-5149.53,9.899e-05,2]
[342347135,1731762638513,-500.0,9.899e-05,2]
[342347137,1731762638523,-5287.71,9.899e-05,2]
[342347139,1731762638534,-355.55044062,9.899e-05,2]
[342347141,1731762638543,-500.0,9.899e-05,2]
[342347143,1731762638553,-500.0,9.899e-05,2]
[342347145,1731762638563,-5944.858239,9.9e-05,2]
[342347147,1731762638572,-266.83990233,9.916e-05,2]
[342347149,1731762638582,-500.0,9.933e-05,2]
[342347151,1731762638592,-300.0,9.963e-05,2]
[342347153,1731762638601,-500.0,9.968e-05,2]
[342347155,1731762638610,-500.0,9.968e-05,2]
[342347157,1731762638620,-540.4,9.968e-05,2]
[342347159,1731762638630,-5164.09793393,9.968e-05,2]
[342347161,1731762638639,-1992.0,9.969e-05,2]
[342347163,1731762638649,-559.0,9.969e-05,2]
[342347165,1731762638658,-1924.0,9.969e-05,2]
[342347167,1731762638668,-1259.0,9.969e-05,2]
[342347169,1731762638678,-814.0,9.969e-05,2]
[342347171,1731762638689,-3746.0,9.969e-05,2]
[342347173,1731762638699,-912.0,9.969e-05,2]
[342347175,1731762638707,-3488.0,9.969e-05,2]
[342347177,1731762638716,-1160.0,9.969e-05,2]
[342347179,1731762638725,-244.724,9.969e-05,2]
[342347181,1731762638737,-5933.0,9.969e-05,2]
[342347183,1731762638745,-13639.0,9.969e-05,2]
[342347185,1731762638755,-1000.0,9.978e-05,2]
[342347187,1731762638765,-372.2866159,9.989e-05,2]
[342347189,1731762638774,-949.035,9.991e-05,2]
[342347191,1731762638784,-270.40262431,9.991e-05,2]
[342347193,1731762638794,-500.0,9.995e-05,2]
[342347195,1731762638803,-500.0,9.995e-05,2]
[342347197,1731762638812,-500.0,9.996e-05,2]
[342347199,1731762638822,-500.0,9.996e-05,2]
[342347201,1731762638831,-500.0,9.996e-05,2]
[342347203,1731762638842,-500.0,9.996e-05,2]
[342347205,1731762638851,-500.0,9.996e-05,2]
[342347207,1731762638861,-500.0,9.996e-05,2]
[342347209,1731762638870,-402.23,9.996e-05,2]
[342347211,1731762638880,-500.0,9.996e-05,2]
[342347213,1731762638889,-518.19935179,9.996e-05,2]
[342347215,1731762638898,-500.0,9.996e-05,2]
[342347217,1731762638907,-582.57754702,9.996e-05,2]
[342347219,1731762638916,-500.0,9.996e-05,2]
[342347221,1731762638926,-500.0,9.996e-05,2]
[342347223,1731762638935,-354.45,9.996e-05,2]
[342347225,1731762638944,-500.0,9.996e-05,2]
[342347227,1731762638954,-500.0,9.996e-05,2]
[342347229,1731762638963,-500.0,9.996e-05,2]
[342347231,1731762638973,-501.26393229,9.996e-05,2]
[342347233,1731762638982,-500.0,9.996e-05,2]
[342347235,1731762638991,-500.0,9.996e-05,2]
[342347237,1731762639000,-503.82,9.996e-05,2]
[342347239,1731762639009,-500.0,9.996e-05,2]
[342347241,1731762639019,-500.0,9.996e-05,2]
[342347243,1731762639027,-500.0,9.996e-05,2]
[342347245,1731762639038,-500.88181325,9.996e-05,2]
[342347247,1731762639047,-500.0,9.996e-05,2]
[342347249,1731762639056,-500.0,9.996e-05,2]
[342347251,1731762639066,-501.48380414,9.996e-05,2]
[342347253,1731762639075,-500.0,9.996e-05,2]
[342347255,1731762639084,-500.0,9.996e-05,2]
[342347257,1731762639093,-500.0,9.996e-05,2]
[342347259,1731762639103,-500.0,9.996e-05,2]
[342347261,1731762639112,-500.0,9.996e-05,2]
[342347263,1731762639121,-500.0,9.996e-05,2]
[342347265,1731762639130,-500.0,9.996e-05,2]
[342347267,1731762639139,-500.0,9.996e-05,2]
[342347269,1731762639148,-500.0,9.996e-05,2]
[342347271,1731762639158,-500.0,9.996e-05,2]
[342347273,1731762639167,-537.07806165,9.996e-05,2]
[342347275,1731762639177,-500.0,9.996e-05,2]
[342347277,1731762639186,-500.0,9.996e-05,2]
[342347279,1731762639198,-500.0,9.996e-05,2]
[342347281,1731762639208,-500.5381041,9.996e-05,2]
[342347283,1731762639218,-500.0,9.996e-05,2]
[342347285,1731762639227,-501.780152,9.996e-05,2]
[342347287,1731762639236,-500.43343249,9.996e-05,2]
[342347289,1731762639246,-381.75741098,9.996e-05,2]
[342347291,1731762639255,-500.0,9.996e-05,2]
[342347293,1731762639264,-500.0,9.996e-05,2]
[342347295,1731762639273,-500.0,9.996e-05,2]
[342347297,1731762639284,-500.0,9.996e-05,2]
[342347299,1731762639294,-500.0,9.996e-05,2]
[342347301,1731762639303,-500.0,9.996e-05,2]
[342347303,1731762639313,-500.0,9.996e-05,2]
[342347305,1731762639322,-500.0,9.996e-05,2]
[342347307,1731762639331,-500.0,9.996e-05,2]
[342347309,1731762639341,-500.0,9.996e-05,2]
[342347311,1731762639350,-500.0,9.996e-05,2]
[342347313,1731762639359,-500.0,9.996e-05,2]
[342347315,1731762639369,-500.0,9.996e-05,2]
[342347317,1731762639378,-500.0,9.996e-05,2]
[342347320,1731762639388,-500.0,9.996e-05,2]
[342347327,1731762639449,-500.0,9.996e-05,2]
[342347329,1731762639458,-500.0,9.996e-05,2]
[342347331,1731762639468,-313.8,9.996e-05,2]
[342347333,1731762639478,-436.04,9.996e-05,2]
[342347335,1731762639487,-402.2,9.996e-05,2]
[342347337,1731762639496,-500.0,9.996e-05,2]
[342347339,1731762639507,-500.0,9.996e-05,2]
[342347341,1731762639515,-215.08940712,9.996e-05,2]
[342347343,1731762639525,-150.0,9.996e-05,2]
[342347345,1731762639541,-500.0,9.996e-05,2]
[342347347,1731762639550,-500.0,9.996e-05,2]
[342347349,1731762639559,-218.15002723,9.996e-05,2]
[342347351,1731762639568,-500.0,9.996e-05,2]
[342347353,1731762639577,-500.0,9.996e-05,2]
[342347355,1731762639587,-500.0,9.996e-05,2]
[342347357,1731762639596,-5694.38,9.996e-05,2]
[342347359,1731762639605,-500.0,9.996e-05,2]
[342347361,1731762639614,-500.0,9.996e-05,2]
[342347363,1731762639623,-500.0,9.996e-05,2]
[342347365,1731762639631,-5643.06,9.996e-05,2]
[342347367,1731762639640,-504.08598131,9.996e-05,2]
[342347369,1731762639649,-500.0,9.996e-05,2]
[342347371,1731762639658,-5128.28,9.996e-05,2]
[342347373,1731762639668,-399.23393078,9.996e-05,2]
[342347375,1731762639676,-3549.64,9.996e-05,2]
[342347377,1731762639686,-500.0,9.996e-05,2]
[342347379,1731762639699,-500.0,9.996e-05,2]
[342347381,1731762639708,-402.22934355,9.996e-05,2]